Cogmind - Beta 10.2 @@@ ROGUE MODE // 2021.07.17 @ 15:57:18 // Halloween2020/ForbiddenLore Player: Cyurio Result: Destroyed by G-34 Mercenary with Small Laser Performance ------------- Evolutions (0) 0 Regions Visited (1) 200 Robots Destroyed (5) 25 Value Destroyed (108) 108 Prototype IDs (0) 0 Alien Tech Used (0) 0 Bonus (0) 0 TOTAL SCORE: 333 Bonus ------- None Cogmind --------- Core Integrity 0/250 Matter 247/300 Energy 43/100 System Corruption 0% Temperature Cool (6) Movement Core (50) Location -10/Materials Parts ------- > --- POWER (1) -------- (None) > --- PROPULSION (2) --- (None) > --- UTILITY (2) ------ Utility Shielding > --- WEAPON (2) ------- (None) > --- INVENTORY (4) ---- Ion Engine VTOL Module VTOL Module Grenade Launcher Peak State ------------ > --- POWER ------------ Ion Engine > --- PROPULSION ------- VTOL Module VTOL Module > --- UTILITY ---------- Large Storage Unit Utility Shielding > --- WEAPON ----------- Assault Rifle Light Assault Rifle > --- INVENTORY -------- Ion Engine Ion Engine Aluminum Leg Aluminum Leg Aluminum Leg Wheel Wheel VTOL Module Grenade Launcher [Rating: 10] Favorites ----------- Power Ion Engine Engine Ion Engine Propulsion Aluminum Leg Leg Aluminum Leg Wheel Wheel Flight Unit VTOL Module Utility Utility Shielding Device Shield Generator Storage Small Storage Unit Protection Utility Shielding Weapon Assault Rifle Energy Gun EM Pulse Gun Ballistic Gun Assault Rifle Slashing Weapon Mining Claw Build | -11 -10 ------- Run | Scr Mat Slots Evolved . | . . Power . | . . Propulsion . | . . Utility . | . . Weapon . | . . Parts Attached 9 | . 9 Power . | . . Engine . | . . Core . | . . Reactor . | . . Propulsion 4 | . 4 Treads . | . . Leg . | . . Wheel 2 | . 2 Hover . | . . Flight 2 | . 2 Utility 3 | . 3 Device 1 | . 1 Storage 1 | . 1 Processor . | . . Hackware . | . . Protection 1 | . 1 Artifact . | . . Weapon 2 | . 2 Energy Gun . | . . Energy Cannon . | . . Ballistic Gun 1 | . 1 Ballistic Cannon . | . . Launcher . | . . Special Weapon . | . . Impact Weapon . | . . Slashing Weapon 1 | . 1 Piercing Weapon . | . . Special Melee Weapon . | . . Unidentified Prototypes . | . . Parts Lost 7 | . 7 Power 1 | . 1 Propulsion 2 | . 2 Utility 1 | . 1 Weapon 3 | . 3 Highest Loss Streak 6 | . 6 Average Slot Usage (%) 91 | . 91 Engine 13 | . 13 Leg 21 | . 21 Wheel 3 | . 3 Flight 1 | . 1 Device 2 | . 2 Storage 10 | . 10 Protection 10 | . 10 Energy Gun 8 | . 8 Ballistic Gun 14 | . 14 Slashing Weapon 2 | . 2 Naked Turns . | . . Heaviest Build 26 | 13 26 Greatest Support 20 | 20 20 Greatest Overweight (x) 1 | . 1 Average Overweight (x) . | . . Largest Inventory Capacity 10 | 6 10 Average Capacity 6 | 6 6 Most Carried 10 | 6 10 Average Carried 5 | 6 5 Final Capacity 6 | 6 4 Final Carried 6 | 6 4 Class Distribution -------------------- 100% | Mutant Dominant Class ---------------- Mutant | -10/Materials Resources | -11 -10 ----------- Run | Scr Mat Matter Collected 298 | 200 98 Remotely . | . . Salvage Created 149 | . 149 Parts 8 | . 8 Haulers Intercepted . | . . Recyclers Shooed . | . . Parts Field Recycled . | . . Retrieved Matter . | . . Parts Self-Destructed . | . . Prevented . | . . Kills | -11 -10 ------- Run | Scr Mat Combat Hostiles Destroyed 5 | . 5 Guns 5 | . 5 Classes Destroyed 2 | . 2 Swarmer 3 | . 3 Grunt 2 | . 2 Best Kill Streak 3 | . 3 Combat Bots Only 3 | . 3 Max Kills in Single Turn 1 | . 1 Gunslinging . | . . Exploded . | . . Melee . | . . Uniques/NPCs Destroyed . | . . Combat | -11 -10 -------- Run | Scr Mat Damage Taken 776 | . 776 Core 251 | . 251 Absorbed by Shields 86 | . 86 Core Remaining (%) 100 | 100 . Volleys Fired 33 | . 33 Largest 2 | . 2 Hottest 60 | . 60 Shots Fired 50 | . 50 Gun 50 | . 50 Cannon . | . . Launcher . | . . Special . | . . Kinetic 35 | . 35 Thermal . | . . Explosive . | . . Electromagnetic 15 | . 15 Robot Hit Streak 4 | . 4 Robot Miss Streak 4 | . 4 Penetration Max . | . . Secondary Targets . | . . Shots Hit Robots 26 | . 26 Core Hits 8 | . 8 Critical Hits . | . . Critical Kills . | . . Critical Parts Destroyed . | . . Melee Attacks 5 | . 5 Impact . | . . Slashing 5 | . 5 Piercing . | . . Sneak Attacks . | . . Combat Hostiles . | . . Follow-up Attacks . | . . Damage Inflicted 316 | . 316 Guns 258 | . 258 Cannons . | . . Explosions . | . . Melee 48 | . 48 Ramming 10 | . 10 Kinetic 179 | . 179 Thermal . | . . Explosive . | . . Electromagnetic 79 | . 79 Impact . | . . Slashing 48 | . 48 Piercing . | . . Highest Corruption . | . . Average Corruption . | . . Corruption Purged . | . . Overload Shots . | . . Overflow Damage . | . . Projectiles . | . . Explosions . | . . Melee . | . . Knockbacks . | . . Impact . | . . Kinetic . | . . Secondary . | . . Self-Inflicted Damage 5 | . 5 Shots . | . . Rammed 2 | . 2 Targets Rammed 2 | . 2 Kicked . | . . Crushed . | . . Highest Temperature 12 | . 12 Average Temperature 6 | . 6 Received Heat Transfer 336 | . 336 Siege Activations . | . . Robots Corrupted . | . . Combat Hostiles . | . . Parts Fried . | . . Impact Corruptions . | . . Robots Melted . | . . Combat Hostiles . | . . Parts Melted . | . . Heat Transferred . | . . Parts Sabotaged . | . . Parts Stolen . | . . Parts Stripped . | . . Power Chain Reactions . | . . Missiles Intercepted . | . . Alert | -11 -10 ------- Run | Scr Mat Peak Influence 155 | . 155 Initial . | . . Average 62 | . 67 Maximum Alert Level . | . . Low Security (%) 100 | 100 100 Level 1 . | . . Level 2 . | . . Level 3 . | . . Level 4 . | . . Level 5 . | . . High Security . | . . Max Security . | . . Squads Dispatched 1 | . 1 Investigation . | . . Extermination . | . . Reinforcement 1 | . 1 Assault . | . . Garrison . | . . Intercept . | . . Construction Impeded . | . . Haulers Reinforced . | . . Stealth | -11 -10 --------- Run | Scr Mat Distress Signals . | . . Communications Jammed . | . . Distress Signals . | . . Times Spotted 17 | . 17 Peak Tracking Total 5 | . 5 Tactical Retreats . | . . Traps | -11 -10 ------- Run | Scr Mat Traps Triggered . | . . Indirectly . | . . Trap Hack Attempts . | . . Triggered . | . . Disarmed . | . . Reprogrammed . | . . Reused . | . . Traps Extracted . | . . Installed . | . . Triggered . | . . Machines | -11 -10 ---------- Run | Scr Mat Machines Disabled 1 | . 1 Max in Single Turn 1 | . 1 Machines Sabotaged . | . . Garrisons Compromised . | . . Overloaded Fab Kills . | . . Fab Network Shutdowns . | . . Hacking | -11 -10 --------- Run | Scr Mat Machines Accessed . | . . Terminals . | . . Fabricators . | . . Repair Stations . | . . Recycling Units . | . . Scanalyzers . | . . Garrison Access . | . . Total Hacks . | . . Successful . | . . Failed . | . . Catastrophic . | . . Database Lockouts . | . . Manual . | . . Terminals . | . . Fabricators . | . . Repair Stations . | . . Recycling Units . | . . Scanalyzers . | . . Garrison Access . | . . Terminal Hacks . | . . Fabricator Hacks . | . . Repair Station Hacks . | . . Recycling Unit Hacks . | . . Scanalyzer . | . . Garrison Access Hacks . | . . Unauthorized Hacks . | . . Terminals . | . . Fabricators . | . . Repair Stations . | . . Recycling Units . | . . Scanalyzers . | . . Garrison Access . | . . Data Cores Recovered . | . . Used . | . . Hacking Detections . | . . Full Trace Events . | . . Feedback Events . | . . Feedback Blocked . | . . Robot Schematics Acquired . | . . Robots Built . | . . Matter . | . . Time . | . . Total Robot Build Rating . | . . Part Schematics Acquired . | . . Parts Built . | . . Matter . | . . Time . | . . Total Part Build Rating . | . . Parts Repaired . | . . Time . | . . Parts Recycled . | . . Recycled Matter . | . . Retrieved Matter . | . . Retrieved Components . | . . Parts Scanalyzed . | . . Part Schematics Acquired . | . . Parts Damaged . | . . Bothacking | -11 -10 ------------ Run | Scr Mat Used RIF Installer . | . . Robots Hacked . | . . Non-combat . | . . Combat . | . . Robot Hacks Applied . | . . Relay Couplers Released . | . . Robots Rewired . | . . Allies Hacked . | . . Hacks Repelled . | . . Allies | -11 -10 -------- Run | Scr Mat Total Allies . | . . Largest Group . | . . Highest-Rated Group . | . . Highest-Rated Ally . | . . Total Orders . | . . Ally Attacks . | . . Total Damage . | . . Kills . | . . Allies Corrupted . | . . Allies Melted . | . . Intel | -11 -10 ------- Run | Scr Mat Robot Analysis Total . | . . Derelict Logs Recovered . | . . Drone Launches . | . . Drone Recoveries . | . . Exploration | -11 -10 ------------- Run | Scr Mat Turns Passed 489 | 32 457 Spaces Moved 342 | 27 315 Core 5 | . 5 Treads . | . . Legs 240 | 27 213 Wheels 41 | . 41 Hover . | . . Flight 56 | . 56 Fastest Speed 37 | 120 37 Average Speed 105 | 120 104 Slowest Speed 150 | 120 150 Overloaded Moves . | . . Propulsion Burnouts . | . . Robots Hopped . | . . Cave-ins Triggered . | . . Exploration Rate (%) 20 | 3 38 Regions Visited 1 Branch Regions . Pre-discovered Areas . | . . Known Exits Taken . | . . Unknown Exits Taken 1 | 1 . Scrap Searched . | . . Spaces Dug . | . . Terrain Destroyed . | . . Melee . | . . Projectile . | . . AOE . | . . Terrain Rammed . | . . Walls Destroyed . | . . Machines Disabled . | . . Actions | -11 -10 --------- Run | Scr Mat Total 411 | 26 385 Wait 4 | . 4 Move 341 | 26 315 Hop . | . . Pick Up 9 | . 9 Fast Attach 3 | . 3 Attach 1 | . 1 Detach . | . . Swap 5 | . 5 Drop 8 | . 8 Fire 33 | . 33 Melee 5 | . 5 Ram 2 | . 2 Kick . | . . Crush . | . . Escape Stasis . | . . Rewire . | . . Trap . | . . Miscellaneous . | . . Route ------- -11/Scrapyard -10/Materials (discovered 2 exits: [*Min x2]) History --------- Turn | Location | Event 1 | -11/Scrapyard | Discovered new exit (range 3) 33 | -11/Scrapyard | Entered Materials 33 | -10/Materials | Discovered new exit (range 14) 233 | -10/Materials | Discovered new exit (range 8) 313 | -10/Materials | Build established: Mutant 484 | -10/Materials | Core integrity fell below 50% 490 | -10/Materials | Core integrity fell below 20% 490 | -10/Materials | Destroyed by G-34 Mercenary with Small Laser Last Messages --------------- 00352_ Acquired Aluminum Leg. 00356_ Acquired 18 matter. 00373_ Acquired VTOL Module. 00384_ Acquired Shield Generator. 00386_ Dropped Shield Generator. 00390_ Dropped Lrg. Storage Unit. 00391_ Dropped Aluminum Leg. 00393_ Acquired Wheel. 00394_ Acquired Shield Generator. 00396_ Dropped Lgt. Assault Rifle. 00415_ Acquired Mining Claw. 00467_ Atomic Centrifuge disabled. 00472_ Assault Rifle destroyed. 00476_ Wheel destroyed. 00477_ Ion Engine destroyed. 00479_ Shield Generator destroyed. 00481_ Wheel destroyed. 00484_ Mining Claw destroyed. 00488_ Slammed into G-34 Mercenary. 00489_ Slammed into G-47 Trooper. Map ----- +----------------------------------------------------+ | ?????????????????????????????????????????????????? | | ?????????????????????????????????????????????????? | | ?????????????????????????????????????????????????? | | ?????????????????????????????????????????????????? | | ?????????????????????????????????????????????????? | | ?????????????????????????????????????????????????? | | ?????????????????????????????????????????????????? | | ?????????????????????????????????????????????????? | | ?????????????????????????????????????????????????? | | ?????????????????? ????????????????????????????? | | ?????????????????? #???????????????????????????? | | ?????????????????? #???????????????????????????? | | ?????????????????? #???????????????????????????? | | ?????????????????# #???????????????????????????? | | ?????????????????# #???????????????????????????? | | ?????????????????+ +???????????????????????????? | | ?????????????????# #???????????????????????????? | | ????????????????## ####????????????????????????? | | ????????????????# "#????????????????????????? | | ???????########## ""########?????????????????? | | ???????# ## ||# ! #?????????????????? | | ???????# """ ## < ""#""" #?????????????????? | | ???????# """ ## ||#""" #?????????????????? | | ???????# """ ## ""# " #?????????????????? | | ???????# ## "#ggg #?????????????????? | | ???????# %! ### ####@ g !#?????????????????? | | ???????# !! #?# #######+##################??? | | ???????# !! #?# ^ # #??? | | ######## #?# # #??? | | # #?# # #??? | | # #?# ############ # """ #??? | | """ ###+####### #?# # #% """"" #??? | | """"" # #?# """ # +=%""""" #??? | | """"" + #?# """"" + #= """"" #??? | | """"" # #?# """"" # #! """ #??? | | """ #+#+####### #?# """"" ## ############### | | # ## #?# """ ## #???????# # | | # T ## #?# ## #???????# # | | ######## ## #?# ## #???????# # | | ?????#"" ## #?# ## #???????# # | | ?????#"T ## #?########### #???????# # | | ?????#"" ! """ ## #???????????# #????????# #? | | ?????### """!## #???????????# ########## #? | | ???????# """%## #???????????# ## # #? | | ???????# ## #?########### ## + #? | | ???????########/## #?# ## ## ! # #? | | ??????????????# ### """ ## ########## #? | | ??????????????# + """ # ####### ## | | ??????????????# ### """ # | | ??????????????# #?# """ ! + < | +----------------------------------------------------+ Best States ------------- Heat Dissipation 25 Energy Generation 10 Energy Capacity 250 Matter Stores 300 Matter Capacity 300 Sight Range 16 Terrain Scan Density 10 Utility Shielding 33 Evasion (%) 62 Item Schematics ----------------- None Robot Schematics ------------------ None Fabricated ------------ Nothing Alien Tech Used ----------------- None Achievements -------------- None Challenges ------------ None Game ------ Seed ChromaticDynamicBeam Manual? 0 Play Time 00:17:15 Cumulative 28.3 hours Start 2020.11.25 @ 18:26:46 End 2021.07.17 @ 15:57:18 Sessions 3 Manual Loads 0 Difficulty Rogue Special Mode Halloween2020/ForbiddenLore Game No. 42 Rogue 42 Adventurer 0 Explorer 0 Win Type - Total 0 Types 0/0/0/0/0/0/0/0/0 Lore% 25 Gallery% 30 Achievement% 24 Wizard Run 0 Options --------- ASCII 1 Keyboard 1 Movement Vi Keybinds 0 Fullscreen 1 Font 18/SmallcapsGlow Map View 76x50 Tactical HUD 1 Map Filters NONE Filters NONE Steam 1 RUN: f044392e-ef53-4cef-a477-aec336e8ba75